Cogmind - Beta 17 @@@ ROGUE MODE // 2026.07.08 @ 17:26:07 Player: flowerfeast Result: Destroyed by D-53 Grenadier with Mini Grenade Launcher Performance ------------- Evolutions (0) 0 Regions Visited (2) 400 Robots Destroyed (15) 75 Value Destroyed (451) 451 Prototype IDs (0) 0 Alien Tech Used (0) 0 Bonus (0) 0 TOTAL SCORE: 926 Bonus ------- None Cogmind --------- Core Integrity 0/250 Matter 280/300 Energy 80/125 System Corruption 0% Temperature Cool (0) Movement Walking (190) Ox1 Location -10/Mines Parts ------- > --- POWER (1) -------- Light Ion Engine > --- PROPULSION (2) --- Aluminum Leg Aluminum Leg > --- UTILITY (2) ------ Large Storage Unit > --- WEAPON (2) ------- Assault Rifle Hammer > --- INVENTORY (15) --- Aluminum Leg High-capacity Matter Pod (200) Peak State ------------ > --- POWER ------------ Ion Engine > --- PROPULSION ------- Light Treads Light Treads > --- UTILITY ---------- Small Storage Unit Seismic Detector > --- WEAPON ----------- Assault Rifle Light Assault Rifle > --- INVENTORY -------- Light Ion Engine Aluminum Leg Aluminum Leg [Rating: 7] Favorites ----------- Power Ion Engine Engine Ion Engine Propulsion Light Treads Treads Light Treads Leg Aluminum Leg Utility Large Storage Unit Device Seismic Detector Storage Large Storage Unit Protection Light Armor Plating Weapon Assault Rifle Ballistic Gun Assault Rifle Launcher Grenade Launcher Impact Weapon Hammer Build | -11 -10 -10 ------- Run | Yrd Mat Min Slots Evolved . | . . . Power . | . . . Propulsion . | . . . Utility . | . . . Weapon . | . . . Parts Attached 17 | 7 8 2 Power 3 | 1 1 1 Engine 3 | 1 1 1 Core . | . . . Reactor . | . . . Propulsion 5 | 2 2 1 Treads 2 | 2 . . Leg 3 | . 2 1 Wheel . | . . . Hover . | . . . Flight . | . . . Utility 5 | 2 3 . Device 1 | 1 . . Storage 3 | 1 2 . Processor . | . . . Hackware . | . . . Protection 1 | . 1 . Artifact . | . . . Weapon 4 | 2 2 . Energy Gun . | . . . Energy Cannon . | . . . Ballistic Gun 2 | 2 . . Ballistic Cannon . | . . . Launcher 1 | . 1 . Special Weapon . | . . . Impact Weapon 1 | . 1 . Slashing Weapon . | . . . Piercing Weapon . | . . . Special Melee Weapon . | . . . Unidentified Prototypes . | . . . Parts Lost 7 | . 4 3 Power 2 | . 1 1 Propulsion 2 | . 1 1 Utility 2 | . 1 1 Weapon 1 | . 1 . Highest Loss Streak 3 | . 3 3 To Critical Strikes . | . . . Average Backups 5 | 2 6 4 Power 1 | . 1 1 Propulsion 2 | 1 3 2 Utility . | . 1 1 Weapon . | . . . Tool/Special . | . . . Unused Backups 2 | . . 2 Power . | . . . Propulsion 1 | . . 1 Utility 1 | . . 1 Weapon . | . . . Tool/Special . | . . . Average Slot Usage (%) 97 | . 96 98 Engine 13 | . 13 14 Treads 17 | . 21 . Leg 10 | . 6 27 Device 8 | . 9 . Storage 14 | . 14 14 Protection 4 | . 3 13 Ballistic Gun 18 | . 19 14 Launcher 1 | . 1 . Impact Weapon 7 | . 5 14 Peak Build Rating 7 | 7 7 7 Average Rating 6 | 4 6 6 On Entrance 4 | . 7 7 Avg Prop Armor Cover (%) . | . . . Naked Turns . | . . . Heaviest Build 32 | 14 32 32 Greatest Support 40 | 40 40 20 Greatest Overweight (x) 1 | . 1 1 Average Overweight (x) . | . . 1 Largest Inventory Capacity 15 | 8 15 15 Average Capacity 12 | 6 12 15 Most Carried 9 | 4 9 4 Average Carried 5 | 2 6 3 Final Capacity 15 | 8 15 15 Final Carried 4 | 3 4 2 Class Distribution -------------------- 100% | Mutant Dominant Class ---------------- Mutant | -10/Materials Mutant | -10/Mines Resources | -11 -10 -10 ----------- Run | Yrd Mat Min Matter Collected 679 | 249 430 . Remotely . | . . . Salvage Created 527 | 30 497 . Parts 28 | 5 23 . Haulers Intercepted . | . . . Recyclers Shooed . | . . . Parts Field Recycled . | . . . Retrieved Matter . | . . . Parts Self-Destructed . | . . . Prevented . | . . . Parts Restored . | . . . Kills | -11 -10 -10 ------- Run | Yrd Mat Min Combat Hostiles Destroyed 12 | . 12 . Melee 3 | . 3 . Guns 5 | . 5 . Classes Destroyed 5 | 1 4 . Builder 1 | . 1 . Tunneler 1 | 1 . . Watcher 1 | . 1 . Swarmer 1 | . 1 . Grunt 11 | . 11 . Best Kill Streak 4 | 1 4 . Combat Bots Only 3 | . 3 . Max Kills in Single Turn 1 | 1 1 . Gunslinging . | . . . Exploded . | . . . Melee 1 | . 1 . Uniques/NPCs Destroyed . | . . . Combat | -11 -10 -10 -------- Run | Yrd Mat Min Hostile Shots Fired 117 | . 98 19 Missed 32 | . 28 4 Hits 85 | . 70 15 Projectile 85 | . 70 15 AOE 10 | . . 10 Critical Strikes 1 | . 1 . Damage Taken 1198 | . 820 378 Core 259 | . 151 108 Absorbed by Shields . | . . . Core Remaining (%) 100 | 100 . . Volleys Fired 29 | 1 28 . Largest 2 | 2 2 . Hottest 40 | 40 40 . Shots Fired 57 | 2 55 . Gun 56 | 2 54 . Cannon . | . . . Launcher 1 | . 1 . Special . | . . . Kinetic 56 | 2 54 . Thermal . | . . . Explosive 1 | . 1 . Electromagnetic . | . . . Robot Hit Streak 11 | 1 11 . Robot Miss Streak 2 | . 2 . Penetration Max . | . . . Secondary Targets . | . . . Shots Hit Robots 61 | 1 58 2 Core Hits 19 | 1 18 . Critical Kills 1 | . 1 . Critical Parts Destroyed 8 | . 8 . Critical Strikes 9 | . 9 . Smash 9 | . 9 . Melee Attacks 45 | . 41 4 Impact 45 | . 41 4 Slashing . | . . . Piercing . | . . . Sneak Attacks 1 | . . 1 Combat Hostiles . | . . . Follow-up Attacks . | . . . Damage Inflicted 1090 | 12 1014 64 Guns 338 | 12 326 . Cannons . | . . . Explosions 45 | . 45 . Melee 704 | . 640 64 Ramming 3 | . 3 . Kinetic 338 | 12 326 . Thermal . | . . . Explosive 45 | . 45 . Electromagnetic . | . . . Impact 704 | . 640 64 Slashing . | . . . Piercing . | . . . Highest Corruption . | . . . Average Corruption . | . . . Corruption Purged . | . . . Corruption Blocked . | . . . Overload Shots . | . . . Overflow Damage 216 | . 192 24 Projectiles . | . . . Explosions . | . . . Melee 216 | . 192 24 Knockbacks 7 | . 6 1 Impact 6 | . 5 1 Kinetic . | . . . Secondary 1 | . 1 . Self-Inflicted Damage . | . . . Shots . | . . . Rammed 2 | . 2 . Targets Rammed 2 | . 2 . Kicked . | . . . Crushed . | . . . Highest Temperature 25 | . 25 . Average Temperature 10 | . 10 . Received Heat Transfer 372 | . 372 . Siege Activations . | . . . Martial Activations . | . . . Shielding Activations . | . . . Robots Disrupted . | . . . Combat Hostiles . | . . . Robots Corrupted 4 | . 4 . Combat Hostiles 4 | . 4 . Parts Fried 2 | . 2 . Impact Corruptions 13 | . 11 2 Robots Melted . | . . . Combat Hostiles . | . . . Parts Melted . | . . . Heat Transferred . | . . . Parts Sabotaged . | . . . Parts Stolen . | . . . Parts Stripped . | . . . Power Chain Reactions . | . . . Alert | -11 -10 -10 ------- Run | Yrd Mat Min Maximum Alert Level . | . . . Low Security (%) 100 | 100 100 100 Level 1 . | . . . Level 2 . | . . . Level 3 . | . . . Level 4 . | . . . Level 5 . | . . . High Security . | . . . Max Security . | . . . Peak Influence 78 | 5 78 3 Initial 3 | . . 3 Average 20 | . 27 . Influence Increases 318 | 5 313 . Destroy 0b10 Robot/C 240 | . 240 . Destroy 0b10 Robot/NC 15 | 5 10 . Destroy Leader 52 | . 52 . Destroy Structure 11 | . 11 . Influence Decreases 318 | 5 305 8 Entered New Map 5 | . . 5 Time Decay 273 | 5 265 3 Lost Part 40 | . 40 . Squads Dispatched 2 | . 2 . Investigation 1 | . 1 . Extermination . | . . . Reinforcement 1 | . 1 . Assault . | . . . Garrison . | . . . Intercept . | . . . Searches Triggered . | . . . Construction Impeded . | . . . Haulers Reinforced . | . . . Active Scanning Responses . | . . . Cargo Convoy Interrupts . | . . . Stealth | -11 -10 -10 --------- Run | Yrd Mat Min Distress Signals 3 | . 3 . Communications Jammed . | . . . Distress Signals . | . . . Times Spotted 29 | . 22 7 Peak Tracking Total 5 | . 5 3 Tactical Retreats . | . . . Traps | -11 -10 -10 ------- Run | Yrd Mat Min Traps Triggered 1 | . 1 . Indirectly . | . . . Trap Hack Attempts . | . . . Triggered . | . . . Disarmed . | . . . Reprogrammed . | . . . Reused . | . . . Traps Extracted . | . . . Installed . | . . . Triggered . | . . . Machines | -11 -10 -10 ---------- Run | Yrd Mat Min Machines Disabled . | . . . Max in Single Turn . | . . . Machines Repaired . | . . . Machines Dismantled . | . . . Machines Sabotaged . | . . . Overloaded Fab Kills . | . . . Hacking | -11 -10 -10 --------- Run | Yrd Mat Min Machines Accessed 2 | . 2 . Terminals 2 | . 2 . Fabricators . | . . . Repair Stations . | . . . Recycling Units . | . . . Scanalyzers . | . . . Garrison Access . | . . . Total Hacks 5 | . 5 . Successful 1 | . 1 . Failed 4 | . 4 . Catastrophic 1 | . 1 . Database Lockouts . | . . . Manual 2 | . 2 . Terminals 5 | . 5 . Fabricators . | . . . Repair Stations . | . . . Recycling Units . | . . . Scanalyzers . | . . . Garrison Access . | . . . Terminal Hacks 1 | . 1 . Branch Access Points 1 | . 1 . Fabricator Hacks . | . . . Repair Station Hacks . | . . . Recycling Unit Hacks . | . . . Scanalyzer . | . . . Garrison Access Hacks . | . . . Unauthorized Hacks . | . . . Terminals . | . . . Fabricators . | . . . Repair Stations . | . . . Recycling Units . | . . . Scanalyzers . | . . . Garrison Access . | . . . Data Cores Recovered . | . . . Used . | . . . Hacking Detections 2 | . 2 . Full Trace Events 1 | . 1 . Feedback Events . | . . . Feedback Blocked . | . . . Robot Schematics Acquired . | . . . Robots Built . | . . . Authchips . | . . . Time . | . . . Total Robot Build Rating . | . . . Part Schematics Acquired . | . . . Parts Built . | . . . Authchips . | . . . Time . | . . . Total Part Build Rating . | . . . Part Studies Acquired . | . . . Parts Repaired . | . . . Time . | . . . Parts Recycled . | . . . Recycled Matter . | . . . Retrieved Matter . | . . . Retrieved Components . | . . . Parts Scanalyzed . | . . . Part Schematics Acquired . | . . . Parts Damaged . | . . . Bothacking | -11 -10 -10 ------------ Run | Yrd Mat Min Used RIF Installer . | . . . Robots Hacked . | . . . Non-combat . | . . . Combat . | . . . Robot Hacks Applied . | . . . Relay Couplers Released . | . . . Fabnet Peak Effective % . | . . . Robots Rewired . | . . . Allies Hacked . | . . . Hacks Repelled . | . . . Allies | -11 -10 -10 -------- Run | Yrd Mat Min Total Allies . | . . . Largest Group . | . . . Highest-Rated Group . | . . . Highest-Rated Ally . | . . . Total Orders . | . . . Ally Attacks . | . . . Total Damage . | . . . Kills . | . . . Allies Corrupted . | . . . Allies Melted . | . . . Intel | -11 -10 -10 ------- Run | Yrd Mat Min Active Infowar (turns) 563 | 12 551 . Seismic 563 | 12 551 . Robot Analysis Total . | . . . Derelict Logs Recovered 1 | . . 1 Drone Launches . | . . . Drone Recoveries . | . . . Exploration | -11 -10 -10 ------------- Run | Yrd Mat Min Turns Passed 1030 | 80 786 164 Spaces Moved 456 | 43 334 79 Core 7 | 7 . . Treads 285 | 36 249 . Legs 164 | . 85 79 Wheels . | . . . Hover . | . . . Flight . | . . . Fastest Speed 50 | 50 160 190 Average Speed 169 | 142 167 190 Slowest Speed 190 | 160 190 190 Overloaded Moves . | . . . Propulsion Burnouts . | . . . Robots Hopped . | . . . Potential Cave-ins . | . . . Cave-ins Triggered . | . . . Exploration Rate (%) 30 | 4 61 25 Regions Visited 2 Branch Regions 1 Pre-discovered Areas 1 | . . 1 Known Exits Taken 1 | . 1 . Unknown Exits Taken 1 | 1 . . Scrap Searched . | . . . Spaces Dug . | . . . Terrain Destroyed 9 | . 9 . Melee . | . . . Projectile . | . . . AOE 9 | . 9 . Terrain Rammed . | . . . Walls Destroyed . | . . . Machines Disabled . | . . . Actions | -11 -10 -10 --------- Run | Yrd Mat Min Total 582 | 60 437 85 Wait 9 | . 9 . Move 454 | 42 333 79 Hop . | . . . Pick Up 19 | 10 9 . Fast Attach . | . . . Attach 14 | 7 5 2 Detach . | . . . Swap 6 | . 6 . Drop 4 | . 4 . Fire 29 | 1 28 . Melee 45 | . 41 4 Ram . | . . . Kick . | . . . Crush 2 | . 2 . Escape Stasis . | . . . Rewire . | . . . Trap . | . . . Miscellaneous . | . . . Route ------- -11/Scrapyard -10/Materials (discovered 3 exits: [*Mat] / *Min x2) -10/Mines (discovered 1 exit: [*Mat]) History --------- Turn | Location | Event 4 | -11/Scrapyard | Discovered new exit (range 15) 81 | -11/Scrapyard | Entered Materials 223 | -10/Materials | Identified exit to Mines 303 | -10/Materials | Build established: Mutant 363 | -10/Materials | Discovered new exit (range 12) 659 | -10/Materials | Core integrity fell below 50% 669 | -10/Materials | Lost 3 parts (1p1u1w) 867 | -10/Materials | Entered Mines 895 | -10/Mines | Discovered new exit (range 9) 907 | -10/Mines | Met a Derelict bent on vengeance 990 | -10/Mines | Assembled infested the area 1028 | -10/Mines | Core integrity fell below 20% 1031 | -10/Mines | Destroyed by D-53 Grenadier with Mini Grenade Launcher Last Messages --------------- 00946_ Sneak attack on T-07 Excavator. 00946_ Destroyed Seismic Detector. 00946_ T-07 Excavator system corrupted by crushing effect. 00946_ T-07 Excavator knocked back. 00953_ K-01 Serf collects debris. 00990_ ALERT: Infestation in the mines, dispatching Demolisher response squad. 01008_ C-45 Heavy ARC bursts open, deploying its payload. 01008_ D-53 Grenadier unfolds itself. 01019_ K-01 Serf collects debris. 01025_ Laser Drill disabled. 01025_ Lgt. Armor Plating destroyed. 01026_ K-01 Serf collects debris. 01027_ The unstable cave ceiling collapses. 01027_ Aluminum Leg destroyed. 01029_ The unstable cave ceiling collapses. 01029_ Ion Engine destroyed. 01030_ K-01 Serf collects debris. 01030_ as-95886 sneak attacks. 01030_ K-01 Serf destroyed. Map ----- +----------------------------------------------------+ | ????????????????????????????????????????? | | ????????????????????????????????????????? | | ????????????????????????????????????????? | | ????????????????????????????????????????? | | ????????????????????????????????????????? | | ????????????????????????????????????????? | | ????????????????????????????????????????? | | ????????????????????????????????????????? | | ????????????????????????????????????????? | | ????????????????????????????????????????? | | #########???????????????????????????????? | | #???????????????????????????????? | | " """ #???????????????????????????????? | | " """ #???????????????????????????????? | | " """ #???????????????????????????????? | | #???????????????????????????????? | | " """ #???????????????????????????????? | | " """ #????????????####???????????????? | | " """ #?????????#### ##??????????????? | | #????????## #?????#????????? | | """ #??????### ####? #????????? | | """ #?????## ## #????????? | | """ #????## #????????? | | #????# #????????? | | #????# ## #?????????? | | #????# " ### @ #?????????? | | ##### ###????# % ### d #????????? | | ### #?????## ### d """????? | | # ####### ### !"""????? | | % # %=""????? | | =% ## # # a #??? | | ###### #### ###?## ##??? | | ##????# #??#######??????#???? | | ###?????# ##???????????????????? | | #????????# ## ##????????????????????? | | ?????????# ##? #?????????????????????? | | ?????????# ##?? #?????????????????????? | | ?????????# #??? ?????????????????????? | | ?????????# #???####????????????????????? | | ????????? #???????????????????????????? | | ????????? #???????????????????????????? | | ????????#####???????????????????????????? | | ????????????????????????????????????????? | | ????????????????????????????????????????? | | ????????????????????????????????????????? | | ????????????????????????????????????????? | | ????????????????????????????????????????? | | ????????????????????????????????????????? | | ????????????????????????????????????????? | | ????????????????????????????????????????? | +----------------------------------------------------+ Best States ------------- Heat Dissipation 25 Energy Generation 10 Energy Capacity 250 Matter Stores 300 Matter Capacity 300 Sight Range 16 Terrain Scan Density 10 Armor Coverage 150 Evasion (%) 40 Recoil Reduction 2 Item Schematics ----------------- None Robot Schematics ------------------ None Fabricated ------------ Nothing Repaired ---------- Nothing Studied --------- None Alien Tech Used ----------------- None Achievements -------------- None Challenges ------------ None Game ------ Seed VoltaicArcMiniperforator Manual? 0 Play Time 00:09:17 Cumulative 7.7 hours Start 2026.07.08 @ 17:17:39 End 2026.07.08 @ 17:26:07 Sessions 1 Manual Loads 0 Difficulty Rogue Special Mode None Game No. 15 Rogue 14 Adventurer 1 Explorer 0 Win Type - Total 0 Types 0/0/0/0/0/0/0/0/0/0 Lore% 7 Gallery% 12 Achievement% 11 Wizard Run 0 Options --------- Layout 0 ASCII 0 Keyboard 0 Movement Mouse Keybinds 0 Fullscreen 2 Font 18/SmallcapsGlow Map View 38x25 Zoom Use 97% Tactical HUD 1 Map Filters NONE Filters NONE Steam 1 RUN: b530a0f4-d0d7-4371-927a-9194f4d139e1